fUSD/lending_fUSD_20250219
["ID","MTS","AMOUNT","RATE_DAILY","PERIOD"]
[353657144,1739985031834,-823.93,0.00012055,2]
[353657145,1739985031842,-198.67,0.00012302,2]
[353657146,1739985031851,-495.45,0.00012305,2]
[353657147,1739985031861,-498.35,0.00012305,2]
[353657148,1739985031870,-499.7,0.00012307,2]
[353657149,1739985031879,-210.33564299,0.00012308,2]
[353657150,1739985031895,-279.73435701,0.00012308,2]
[353657151,1739985031904,-503.64,0.00012311,2]
[353657152,1739985031914,-497.79,0.00012315,2]
[353657153,1739985031924,-166.98537042,0.0001232,2]
[353657180,1739985032347,-326.07462958,0.0001232,2]
[353657182,1739985032356,-493.5,0.00012327,2]
[353657184,1739985032366,-217.36541439,0.00012337,2]
[353657186,1739985032377,-280.19458561,0.00012337,2]
[353657188,1739985032387,-502.53,0.00012351,2]
[353657190,1739985032395,-173.52541439,0.0001237,2]
[353657193,1739985032412,-335.94458561,0.0001237,2]
[353657195,1739985032421,-80.33808803,0.00012398,2]
[353657717,1739985037569,-314.44,0.00011993,2]
[353657719,1739985037579,-412.34191197,0.00012398,2]
[353657721,1739985037589,-509.92,0.00012435,2]
[353657724,1739985037598,-170.64,0.00012463,2]
[353657726,1739985037608,-497.18,0.00012489,2]
[353657729,1739985037618,-497.88,0.00012563,2]
[353657731,1739985037627,-300.0,0.000126,4]
[353657732,1739985037637,-150.0,0.000126,2]
[353657733,1739985037647,-504.88,0.00012666,2]
[353657734,1739985037658,-600.0,0.000127,4]
[353657735,1739985037667,-900.0,0.000128,4]
[353657736,1739985037676,-152.1,0.00012802,2]
[353657737,1739985037686,-150.71,0.00012802,2]
[353657738,1739985037695,-564.67694409,0.00012807,2]
[353657739,1739985037705,-490.45,0.00012814,2]
[353657740,1739985037715,-1313.70350228,0.00012831,2]
[353657741,1739985037727,-20926.78965005,0.00012831,2]
[353657742,1739985037737,-1119.74034997,0.000129,4]
[353657743,1739985037763,-80.25965003,0.000129,4]
[353657744,1739985037773,-155.43011197,0.000129,2]
[353657745,1739985037783,-55.50133203,0.000129,2]
[353657746,1739985037794,-211.27556797,0.000129,2]
[353657747,1739985037803,-5986.4694,0.000129,2]
[353657748,1739985037813,-2425.96,0.00012947,2]
[353657749,1739985037823,-368.79336682,0.00013,2]
[353657750,1739985037832,-4509.80102292,0.00013,4]
[353657751,1739985037843,-23785.112,0.00013,4]
[353657752,1739985037855,-1000.0,0.00013,4]
[353657753,1739985037866,-15381.34440603,0.00013,4]
[353657754,1739985037877,-18639.97387279,0.00013,4]
[353657755,1739985037886,-550.0,0.00013,2]
[353657756,1739985037895,-657.549,0.00013007,2]
[353657757,1739985037904,-722.255,0.00013007,2]
[353657758,1739985037914,-1424.0,0.00013007,2]
[353657759,1739985037925,-4030.0,0.00013007,2]
[353657760,1739985037934,-539.0,0.00013007,2]
[353657761,1739985037945,-150.0,0.00013007,2]
[353657762,1739985037954,-1007.0,0.00013007,2]
[353657763,1739985037963,-3918.0,0.00013007,2]
[353657764,1739985037973,-1110.0,0.00013007,2]
[353657765,1739985037982,-491.16,0.0001302,2]
[353657766,1739985037992,-515.9485,0.00013045,2]
[353657767,1739985038001,-4019.8806,0.00013045,2]
[353657768,1739985038011,-1000.0,0.00013045,2]
[353657769,1739985038020,-3659.2847,0.00013045,2]
[353657770,1739985038030,-2500.0,0.00013045,2]
[353657771,1739985038039,-2111.80403092,0.00013045,2]
[353657772,1739985038049,-1054.47139894,0.00013045,2]
[353657773,1739985038058,-311.00872749,0.00013045,2]
[353657774,1739985038070,-2780.90488586,0.00013046,2]
[353657775,1739985038082,-862.70676373,0.00013046,2]
[353657776,1739985038093,-1328.75,0.00013046,2]
[353657778,1739985038117,-7461.85855041,0.00013046,2]
[353657780,1739985038127,-382.628,0.00013046,2]
[353657782,1739985038136,-5000.0,0.00013047,2]
[353657784,1739985038146,-500.08,0.00013049,2]
[353657785,1739985038156,-509.04,0.00013049,2]
[353657786,1739985038165,-496.07,0.00013049,2]
[353657787,1739985038175,-499.64,0.00013049,2]
[353657788,1739985038184,-508.18,0.00013049,2]
[353657789,1739985038194,-500.0,0.00013049,2]
[353657790,1739985038203,-2111.80403091,0.00013107,2]
[353657791,1739985038212,-1054.47139894,0.00013107,2]
[353657793,1739985038222,-500.0,0.00013111,2]
[353657795,1739985038231,-500.0,0.00013111,2]
[353657797,1739985038240,-695.38,0.00013111,2]
[353657799,1739985038250,-42216.54133242,0.00013112,2]
[353657801,1739985038261,-30757.17467479,0.00013112,2]
[353657805,1739985038293,-3211.91999948,0.00013112,2]
[353657808,1739985038305,-658.47843359,0.00013112,2]
[353657810,1739985038318,-12869.55933541,0.00013112,2]
[353657814,1739985038348,-2712.6804913,0.00013112,2]
[353657816,1739985038357,-214.11553959,0.00013127,2]
[353657818,1739985038369,-18542.6449,0.00013129,2]
[353657819,1739985038382,-506.64,0.00013133,2]
[353657822,1739985038392,-493.58,0.00013134,2]
[353657824,1739985038402,-503.12,0.00013136,2]
[353657826,1739985038412,-506.65,0.00013138,2]
[353657828,1739985038420,-492.32,0.00013141,2]
[353657829,1739985038430,-1083.3,0.00013144,2]
[353657831,1739985038444,-2563.63,0.00013144,2]
[353657833,1739985038453,-1471.355987,0.00013144,2]
[353657835,1739985038462,-500.0,0.00013144,2]
[353657837,1739985038472,-63.16668211,0.00013144,2]
[353657839,1739985038484,-96.37823989,0.00013144,2]
[353657841,1739985038494,-1639.3,0.00013144,2]
[353657843,1739985038503,-153.625135,0.00013144,2]
[353657845,1739985038513,-1715.11,0.00013144,2]
[353657847,1739985038522,-449.6237002,0.00013144,2]
[353657996,1739985039766,-864.8762998,0.00013144,2]
[353657998,1739985039775,-1481.264469,0.00013144,2]
[353658001,1739985039784,-1149.81406372,0.00013144,2]
[353658034,1739985039933,-790.08593628,0.00013144,2]
[353658037,1739985039943,-155.314589,0.00013144,2]
[353658040,1739985039952,-581.57,0.00013144,2]
[353658043,1739985039961,-2633.28,0.00013144,2]
[353658046,1739985039970,-500.0,0.00013144,2]
[353658049,1739985039981,-2152.36,0.00013144,2]
[353658052,1739985039990,-1946.09,0.00013144,2]
[353658055,1739985039999,-1807.19,0.00013144,2]
[353658057,1739985040008,-2114.49,0.00013144,2]
[353658060,1739985040017,-2331.81,0.00013144,2]
[353658062,1739985040026,-1023.7,0.00013144,2]
[353658064,1739985040035,-2517.46,0.00013144,2]
[353658066,1739985040047,-2191.93,0.00013144,2]
[353658068,1739985040056,-3038.52,0.00013144,2]
[353658070,1739985040065,-1629.79,0.00013144,2]
[353658072,1739985040075,-2770.84,0.00013144,2]
[353658075,1739985040084,-2437.56,0.00013144,2]
[353658078,1739985040093,-3200.2,0.00013144,2]
[353658081,1739985040103,-1066.98,0.00013144,2]
[353658083,1739985040112,-2827.16,0.00013144,2]
[353658086,1739985040121,-2270.66,0.00013144,2]
[353658089,1739985040131,-2772.68,0.00013144,2]
[353658092,1739985040140,-609.37,0.00013144,2]
[353658095,1739985040148,-5460.12,0.00013144,2]
[353658098,1739985040157,-3715.78,0.00013144,2]
[353658101,1739985040166,-1597.93,0.00013144,2]
[353658104,1739985040176,-2358.8,0.00013144,2]
[353658107,1739985040185,-500.0,0.00013144,2]
[353658110,1739985040194,-500.0,0.00013144,2]
[353658112,1739985040203,-1186.53,0.00013144,2]
[353658115,1739985040212,-2471.43,0.00013144,2]
[353658118,1739985040221,-2586.83,0.00013144,2]
[353658121,1739985040229,-3311.64,0.00013144,2]
[353658124,1739985040238,-3555.53,0.00013144,2]
[353658127,1739985040248,-2213.06,0.00013144,2]
[353658130,1739985040257,-3752.84,0.00013144,2]
[353658133,1739985040266,-1473.56,0.00013144,2]
[353658136,1739985040275,-1193.43,0.00013144,2]
[353658139,1739985040284,-3251.22,0.00013144,2]
[353658142,1739985040292,-500.0,0.00013145,2]
[353658145,1739985040301,-500.0,0.00013145,2]
[353658148,1739985040310,-1291.55,0.00013145,2]
[353658151,1739985040320,-839.9,0.00013145,2]
[353658154,1739985040329,-1352.04,0.00013145,2]
[353658157,1739985040338,-1443.58,0.00013145,2]
[353658160,1739985040346,-500.0,0.00013145,2]
[353658163,1739985040356,-500.0,0.00013145,2]
[353658166,1739985040365,-1949.88,0.00013145,2]
[353658169,1739985040375,-500.0,0.00013145,2]
[353658172,1739985040383,-639.35,0.00013145,2]
[353658175,1739985040392,-291.64742273,0.00013145,2]
[353658178,1739985040402,-500.0,0.00013145,2]
[353658181,1739985040411,-500.0,0.00013145,2]
[353658184,1739985040420,-1107.27,0.00013145,2]
[353658187,1739985040429,-500.0,0.00013145,2]
[353658189,1739985040439,-500.0,0.00013145,2]
[353658192,1739985040449,-376.25242313,0.00013145,2]
[353658195,1739985040458,-500.0,0.00013145,2]
[353658198,1739985040467,-500.0,0.00013145,2]
[353658201,1739985040475,-638.95,0.00013145,2]
[353658204,1739985040486,-500.0,0.00013145,2]
[353658207,1739985040495,-500.0,0.00013145,2]
[353658210,1739985040504,-500.0,0.00013145,2]
[353658213,1739985040513,-500.0,0.00013145,2]
[353658216,1739985040523,-770.48,0.00013145,2]
[353658219,1739985040532,-500.0,0.00013145,2]
[353658222,1739985040541,-500.0,0.00013145,2]
[353658225,1739985040550,-705.15,0.00013145,2]
[353658228,1739985040560,-1154.89,0.00013145,2]
[353658231,1739985040570,-500.0,0.00013145,2]
[353658234,1739985040578,-934.25,0.00013145,2]
[353658237,1739985040588,-500.0,0.00013145,2]
[353658240,1739985040597,-500.0,0.00013145,2]
[353658243,1739985040606,-500.0,0.00013145,2]
[353658246,1739985040614,-500.0,0.00013145,2]
[353658249,1739985040623,-1171.57,0.00013145,2]
[353658251,1739985040632,-500.0,0.00013145,2]
[353658254,1739985040641,-783.71,0.00013145,2]
[353658257,1739985040651,-662.75,0.00013145,2]
[353658260,1739985040660,-500.0,0.00013145,2]
[353658262,1739985040670,-855.61,0.00013145,2]
[353658266,1739985040679,-500.0,0.00013145,2]
[353658269,1739985040690,-500.0,0.00013145,2]
[353658272,1739985040699,-1216.11,0.00013145,2]
[353658275,1739985040709,-500.0,0.00013145,2]
[353658278,1739985040718,-664.26,0.00013145,2]
[353658281,1739985040728,-500.0,0.00013145,2]
[353658284,1739985040737,-500.0,0.00013145,2]
[353658286,1739985040747,-500.0,0.00013145,2]
[353658289,1739985040756,-500.0,0.00013145,2]
[353658292,1739985040766,-580.53,0.00013145,2]
[353658295,1739985040775,-771.48,0.00013145,2]
[353658298,1739985040787,-680.3,0.00013145,2]
[353658301,1739985040797,-500.0,0.00013145,2]
[353658304,1739985040807,-899.09,0.00013145,2]
[353658307,1739985040817,-500.0,0.00013145,2]
[353658310,1739985040826,-766.28,0.00013145,2]
[353658314,1739985040836,-500.0,0.00013145,2]
[353658316,1739985040845,-500.0,0.00013145,2]
[353658319,1739985040855,-500.0,0.00013145,2]
[353658321,1739985040864,-500.0,0.00013145,2]
[353658324,1739985040874,-1001.21,0.00013145,2]
[353658328,1739985040884,-500.0,0.00013145,2]
[353658330,1739985040894,-500.0,0.00013145,2]
[353658332,1739985040903,-500.0,0.00013145,2]
[353658334,1739985040913,-500.0,0.00013145,2]
[353658336,1739985040923,-620.8,0.00013145,2]
[353658338,1739985040933,-500.0,0.00013145,2]
[353658340,1739985040943,-500.0,0.00013145,2]
[353658342,1739985040953,-500.0,0.00013145,2]
[353658343,1739985040962,-500.0,0.00013145,2]
[353658345,1739985040972,-575.5,0.00013145,2]
[353658348,1739985040983,-773.69,0.00013145,2]
[353658393,1739985041209,-568.58,0.00013145,2]
[353658398,1739985041232,-775.67,0.00013145,2]
[353658401,1739985041242,-500.0,0.00013145,2]
[353658404,1739985041251,-500.0,0.00013145,2]
[353658407,1739985041260,-994.51,0.00013145,2]
[353658410,1739985041270,-838.48,0.00013145,2]
[353658413,1739985041279,-701.31,0.00013145,2]
[353658416,1739985041288,-500.0,0.00013145,2]
[353658419,1739985041296,-959.8,0.00013145,2]
[353658422,1739985041305,-500.0,0.00013145,2]
[353658424,1739985041315,-843.52,0.00013145,2]
[353658428,1739985041328,-500.0,0.00013145,2]
[353658432,1739985041338,-500.0,0.00013145,2]
[353658435,1739985041347,-500.0,0.00013145,2]
[353658437,1739985041356,-662.93,0.00013145,2]
[353658440,1739985041365,-500.0,0.00013145,2]
[353658443,1739985041374,-1223.64,0.00013145,2]
[353658446,1739985041383,-587.49,0.00013145,2]
[353658449,1739985041393,-500.0,0.00013145,2]
[353658452,1739985041402,-500.0,0.00013145,2]
[353658455,1739985041412,-500.0,0.00013145,2]
[353658458,1739985041422,-500.0,0.00013145,2]
[353658461,1739985041432,-864.41,0.00013145,2]
[353658464,1739985041446,-500.0,0.00013145,2]
[353658468,1739985041456,-500.0,0.00013145,2]
[353658470,1739985041466,-500.0,0.00013145,2]
[353658473,1739985041475,-500.0,0.00013145,2]
[353658476,1739985041484,-500.0,0.00013145,2]
[353658478,1739985041493,-500.0,0.00013145,2]
[353658481,1739985041503,-500.0,0.00013145,2]
[353658484,1739985041512,-500.0,0.00013145,2]
[353658487,1739985041522,-500.0,0.00013145,2]
[353658490,1739985041531,-500.0,0.00013145,2]
[353658493,1739985041541,-539.53318952,0.00013145,2]
[353658496,1739985041550,-500.0,0.00013145,2]
[353658499,1739985041559,-500.0,0.00013145,2]
[353658502,1739985041569,-500.0,0.00013145,2]
[353658505,1739985041580,-500.0,0.00013145,2]
[353658508,1739985041589,-500.0,0.00013145,2]
[353658511,1739985041599,-500.0,0.00013145,2]
[353658514,1739985041609,-500.0,0.00013145,2]
[353658517,1739985041619,-500.0,0.00013145,2]
[353658520,1739985041628,-881.56,0.00013145,2]
[353658522,1739985041638,-940.03,0.00013145,2]
[353658525,1739985041648,-500.0,0.00013145,2]
[353658527,1739985041658,-500.0,0.00013145,2]
[353658530,1739985041667,-782.07,0.00013145,2]
[353658532,1739985041677,-500.0,0.00013145,2]
[353658534,1739985041687,-1437.46,0.00013145,2]
[353658536,1739985041697,-667.23,0.00013145,2]
[353658538,1739985041707,-500.0,0.00013145,2]
[353658540,1739985041716,-500.0,0.00013145,2]
[353658542,1739985041726,-946.01,0.00013145,2]
[353658544,1739985041736,-629.74,0.00013145,2]
[353658546,1739985041745,-500.0,0.00013145,2]
[353658548,1739985041755,-500.0,0.00013145,2]
[353658550,1739985041764,-500.0,0.00013145,2]
[353658552,1739985041774,-792.49,0.00013145,2]
[353658554,1739985041782,-547.21,0.00013145,2]
[353658556,1739985041791,-500.0,0.00013145,2]
[353658558,1739985041800,-569.48,0.00013145,2]
[353658560,1739985041809,-500.0,0.00013145,2]
[353658562,1739985041819,-1318.86,0.00013145,2]
[353658564,1739985041828,-500.0,0.00013145,2]
[353658566,1739985041838,-789.26,0.00013145,2]
[353658568,1739985041848,-500.0,0.00013145,2]
[353658570,1739985041858,-500.0,0.00013145,2]
[353658572,1739985041868,-630.78,0.00013145,2]
[353658574,1739985041878,-846.92,0.00013145,2]
[353658576,1739985041887,-500.0,0.00013145,2]
[353658578,1739985041896,-500.0,0.00013145,2]
[353658580,1739985041906,-1512.56,0.00013145,2]
[353658582,1739985041916,-1258.27,0.00013145,2]
[353658584,1739985041925,-500.0,0.00013145,2]
[353658586,1739985041935,-936.34,0.00013145,2]
[353658588,1739985041945,-500.0,0.00013145,2]
[353658590,1739985041954,-911.3,0.00013145,2]
[353658592,1739985041963,-726.56,0.00013145,2]
[353658594,1739985041973,-689.28,0.00013145,2]
[353658596,1739985041982,-500.0,0.00013145,2]
[353658599,1739985041992,-500.0,0.00013145,2]
[353658600,1739985042001,-2145.81,0.00013145,2]
[353658603,1739985042011,-1226.41,0.00013145,2]
[353658604,1739985042022,-500.0,0.00013145,2]
[353658606,1739985042031,-500.0,0.00013145,2]
[353658608,1739985042040,-1388.62,0.00013145,2]
[353658610,1739985042049,-500.0,0.00013145,2]
[353658612,1739985042059,-524.65,0.00013145,2]
[353658614,1739985042068,-500.0,0.00013145,2]
[353658616,1739985042078,-500.0,0.00013145,2]
[353658618,1739985042087,-577.95,0.00013145,2]
[353658620,1739985042097,-500.0,0.00013145,2]
[353658622,1739985042106,-500.0,0.00013145,2]
[353658624,1739985042116,-500.0,0.00013145,2]
[353658626,1739985042125,-500.0,0.00013145,2]
[353658628,1739985042134,-2409.7,0.00013145,2]
[353658630,1739985042144,-500.0,0.00013145,2]
[353658632,1739985042154,-679.91,0.00013145,2]
[353658634,1739985042164,-1389.25,0.00013145,2]
[353658637,1739985042174,-1407.61,0.00013145,2]
[353658639,1739985042183,-554.95,0.00013145,2]
[353658641,1739985042193,-1330.39,0.00013145,2]
[353658643,1739985042202,-629.82,0.00013145,2]
[353658645,1739985042211,-500.0,0.00013145,2]
[353658647,1739985042220,-500.0,0.00013145,2]
[353658649,1739985042230,-1250.59,0.00013145,2]
[353658651,1739985042239,-2411.21,0.00013145,2]
[353658653,1739985042250,-1012.18,0.00013145,2]
[353658654,1739985042260,-1911.7,0.00013145,2]
[353658656,1739985042269,-500.0,0.00013145,2]
[353658658,1739985042278,-2151.15,0.00013145,2]
[353658660,1739985042287,-667.71,0.00013145,2]
[353658662,1739985042296,-599.36,0.00013145,2]
[353658664,1739985042305,-500.0,0.00013145,2]
[353658666,1739985042314,-946.91,0.00013145,2]
[353658668,1739985042323,-500.0,0.00013145,2]
[353658670,1739985042332,-660.28,0.00013145,2]
[353658672,1739985042341,-2134.34,0.00013145,2]
[353658675,1739985042351,-629.78,0.00013145,2]
[353658677,1739985042362,-557.59,0.00013145,2]
[353658679,1739985042372,-300.38294297,0.00013145,2]
[353658680,1739985042382,-500.0,0.00013145,2]
[353658681,1739985042390,-1525.22,0.00013145,2]
[353658682,1739985042400,-3523.54,0.00013145,2]
[353658683,1739985042409,-500.0,0.00013145,2]
[353658685,1739985042417,-3950.45,0.00013145,2]
[353658687,1739985042426,-1281.41,0.00013145,2]
[353658688,1739985042436,-888.47,0.00013145,2]
[353658689,1739985042449,-500.0,0.00013145,2]
[353658690,1739985042459,-500.0,0.00013145,2]
[353658692,1739985042468,-1867.19,0.00013145,2]
[353658694,1739985042477,-741.29,0.00013145,2]
[353658696,1739985042487,-500.0,0.00013145,2]
[353658698,1739985042496,-1953.23,0.00013145,2]
[353658700,1739985042506,-500.0,0.00013145,2]
[353658702,1739985042516,-877.23,0.00013145,2]
[353658705,1739985042525,-3500.11,0.00013145,2]
[353658708,1739985042534,-500.0,0.00013145,2]
[353658710,1739985042543,-1030.43,0.00013145,2]
[353658713,1739985042552,-1014.53,0.00013145,2]
[353658715,1739985042561,-3703.23,0.00013145,2]
[353658719,1739985042570,-3497.27,0.00013145,2]
[353658723,1739985042579,-1968.13,0.00013145,2]
[353658727,1739985042589,-500.0,0.00013145,2]
[353658729,1739985042598,-500.0,0.00013145,2]
[353658732,1739985042608,-661.06,0.00013145,2]
[353658735,1739985042618,-1182.59,0.00013145,2]
[353658738,1739985042627,-500.0,0.00013145,2]
[353658741,1739985042637,-803.25,0.00013145,2]
[353658744,1739985042646,-2652.57,0.00013145,2]
[353658746,1739985042655,-500.0,0.00013145,2]
[353658748,1739985042664,-1501.34,0.00013145,2]
[353658751,1739985042673,-500.0,0.00013145,2]
[353658754,1739985042683,-2453.98,0.00013145,2]
[353658757,1739985042693,-777.79,0.00013145,2]
[353658760,1739985042703,-1153.15,0.00013145,2]
[353658763,1739985042712,-763.09,0.00013145,2]
[353658765,1739985042722,-1026.57,0.00013145,2]
[353658767,1739985042731,-500.0,0.00013145,2]
[353658769,1739985042741,-500.0,0.00013145,2]
[353658771,1739985042750,-1034.96,0.00013145,2]
[353658773,1739985042760,-553.1,0.00013145,2]
[353658775,1739985042769,-1175.86,0.00013145,2]
[353658777,1739985042778,-753.96,0.00013145,2]
[353658779,1739985042788,-2070.96,0.00013145,2]
[353658781,1739985042798,-1670.07,0.00013145,2]
[353658783,1739985042807,-500.0,0.00013145,2]
[353658785,1739985042817,-2257.34,0.00013145,2]
[353658787,1739985042826,-500.0,0.00013145,2]
[353658789,1739985042836,-677.22,0.00013145,2]
[353658791,1739985042845,-2728.92,0.00013145,2]
[353658793,1739985042855,-735.46,0.00013145,2]
[353658795,1739985042864,-500.0,0.00013145,2]
[353658797,1739985042874,-1011.42,0.00013145,2]
[353658799,1739985042883,-1190.78,0.00013145,2]
[353658801,1739985042893,-500.0,0.00013145,2]
[353658803,1739985042903,-2558.84,0.00013145,2]
[353658805,1739985042912,-948.03,0.00013145,2]
[353658807,1739985042922,-1137.44,0.00013145,2]
[353658809,1739985042932,-2180.17,0.00013145,2]
[353658811,1739985042942,-500.0,0.00013145,2]
[353658813,1739985042951,-960.03,0.00013145,2]
[353658815,1739985042961,-1333.36,0.00013145,2]
[353658817,1739985042970,-1063.91,0.00013145,2]
[353658819,1739985042980,-500.0,0.00013145,2]
[353658821,1739985042990,-869.91,0.00013145,2]
[353658823,1739985042999,-500.0,0.00013145,2]
[353658825,1739985043009,-500.0,0.00013145,2]
[353658827,1739985043019,-500.0,0.00013145,2]
[353658829,1739985043029,-550.98,0.00013145,2]
[353658831,1739985043038,-624.7,0.00013145,2]
[353658833,1739985043047,-553.14,0.00013145,2]
[353658835,1739985043057,-2449.41,0.00013145,2]
[353658837,1739985043066,-2416.56,0.00013145,2]
[353658839,1739985043081,-500.0,0.00013145,2]
[353658841,1739985043090,-500.0,0.00013145,2]
[353658843,1739985043100,-500.0,0.00013145,2]
[353658845,1739985043110,-556.2,0.00013145,2]
[353658847,1739985043121,-570.64,0.00013145,2]
[353658850,1739985043131,-500.0,0.00013145,2]
[353658852,1739985043140,-1298.3,0.00013145,2]
[353658853,1739985043150,-500.0,0.00013145,2]
[353658856,1739985043159,-611.73,0.00013145,2]
[353658859,1739985043169,-1246.1,0.00013145,2]
[353658861,1739985043178,-500.0,0.00013145,2]
[353658864,1739985043187,-500.0,0.00013145,2]
[353658865,1739985043196,-500.0,0.00013145,2]
[353658867,1739985043205,-500.0,0.00013145,2]
[353658869,1739985043215,-500.0,0.00013145,2]
[353658873,1739985043224,-1635.76,0.00013145,2]
[353658875,1739985043233,-616.32,0.00013145,2]
[353658878,1739985043242,-2507.84,0.00013145,2]
[353658881,1739985043250,-958.19,0.00013145,2]
[353658883,1739985043260,-895.44,0.00013145,2]
[353658886,1739985043269,-500.0,0.00013145,2]
[353658889,1739985043278,-1251.71,0.00013145,2]
[353658891,1739985043287,-1132.2,0.00013145,2]
[353658894,1739985043297,-1246.79,0.00013146,2]
[353658895,1739985043306,-1156.33,0.00013146,2]
[353658897,1739985043315,-1157.28,0.00013146,2]
[353658899,1739985043324,-500.0,0.00013146,2]
[353658900,1739985043333,-505.42791807,0.00013146,2]
[353658902,1739985043343,-914.13,0.00013146,2]
[353658904,1739985043353,-503.68244561,0.00013146,2]
[353658905,1739985043364,-1917.24,0.00013146,2]
[353658908,1739985043373,-849.28,0.00013146,2]
[353658909,1739985043382,-500.0,0.00013146,2]
[353658911,1739985043391,-1110.4,0.00013146,2]
[353658912,1739985043400,-500.0,0.00013146,2]
[353658914,1739985043409,-500.0,0.00013146,2]
[353658916,1739985043418,-564.85,0.00013146,2]
[353658918,1739985043426,-983.93,0.00013146,2]
[353658919,1739985043438,-667.63,0.00013146,2]
[353658921,1739985043447,-625.51,0.00013146,2]
[353658923,1739985043456,-500.0,0.00013146,2]
[353658924,1739985043465,-500.0,0.00013146,2]
[353658926,1739985043475,-755.76,0.00013146,2]
[353658928,1739985043483,-844.39,0.00013146,2]
[353658929,1739985043492,-713.43,0.00013146,2]
[353658931,1739985043501,-622.65,0.00013146,2]
[353658933,1739985043510,-706.84,0.00013146,2]
[353658935,1739985043518,-1030.1,0.00013146,2]
[353658936,1739985043527,-836.74,0.00013146,2]
[353658938,1739985043536,-1432.01,0.00013146,2]
[353658940,1739985043545,-751.55,0.00013146,2]
[353658942,1739985043554,-729.77,0.00013146,2]
[353658943,1739985043563,-657.08,0.00013146,2]
[353658945,1739985043572,-950.04,0.00013146,2]
[353658947,1739985043581,-1487.73,0.00013146,2]
[353658949,1739985043590,-900.2,0.00013146,2]
[353658950,1739985043599,-1123.27,0.00013146,2]
[353658952,1739985043608,-500.0,0.00013146,2]
[353658954,1739985043617,-646.39,0.00013146,2]
[353658955,1739985043626,-1314.82,0.00013146,2]
[353658957,1739985043635,-1060.35,0.00013146,2]
[353658959,1739985043646,-500.0,0.00013146,2]
[353658961,1739985043655,-1353.75,0.00013146,2]
[353658962,1739985043664,-1386.22,0.00013146,2]
[353658964,1739985043674,-1662.79,0.00013146,2]
[353658966,1739985043684,-523.76,0.00013146,2]
[353658968,1739985043694,-1162.47,0.00013146,2]
[353658970,1739985043704,-1390.67,0.00013146,2]
[353658972,1739985043714,-635.9,0.00013146,2]
[353658973,1739985043723,-1180.3,0.00013146,2]
[353658975,1739985043733,-900.39,0.00013146,2]
[353658977,1739985043743,-814.75,0.00013146,2]
[353658979,1739985043752,-500.0,0.00013146,2]
[353658980,1739985043762,-954.74,0.00013146,2]
[353658982,1739985043771,-807.78,0.00013146,2]
[353658984,1739985043781,-941.38,0.00013146,2]
[353658985,1739985043789,-500.0,0.00013146,2]
[353658987,1739985043799,-925.15,0.00013146,2]
[353658989,1739985043808,-1096.84,0.00013146,2]
[353658991,1739985043817,-2341.16,0.00013146,2]
[353658992,1739985043827,-1234.93,0.00013146,2]
[353658994,1739985043836,-1367.46,0.00013146,2]
[353658996,1739985043845,-2003.02,0.00013146,2]